[Event "22nd ETCC Women 2019"]
[Site "Batumi"]
[Date "2019.10.30"]
[Round "6.31"]
[White "Cosma, Elena-Luminita"]
[Black "Matnadze, Ana"]
[Result "0-1"]
[ECO "A46"]
[WhiteElo "2313"]
[BlackElo "2383"]
[Annotator "NA"]
[PlyCount "154"]
[EventDate "2019.10.24"]
[EventType "team-tourn"]
[EventCountry "GEO"]
[SourceTitle "playchess.com"]
[Source "ChessBase"]
[SourceQuality "1"]
[WhiteTeam "Romania"]
[BlackTeam "Spain"]
[WhiteTeamCountry "ROU"]
[BlackTeamCountry "ESP"]
[TimeControl "40/5400+30:1800+30"]

1. d4 {[%emt 0:00:00]} Nf6 {[%emt 0:00:00]} 2. Nf3 {[%emt 0:00:00]} d5 {[%emt 0:00:00]} 3. c4 {[%emt 0:00:09]} e6 {[%emt 0:01:05]} 4. g3 Bb4+ 5. Bd2 {[%emt 0:02:44]} Be7 {[%emt 0:01:09]} 6. Bg2 {[%emt 0:00:20]} O-O {[%emt 0:00:24]} 7. O-O {[%emt 0:00:16]} c6 {[%emt 0:01:03]} 8. Qc2 {[%emt 0:00:10]} b6 {[%emt 0:01:35]} 9. Bf4 {[%emt 0:00:37]} Bb7 {[%emt 0:09:14]} 10. Rd1 {[%emt 0:00:55]} Nbd7 {[%emt 0:06:11]} 11. Ne5 {[%emt 0:01:00]} Rc8 {[%emt 0:00:52]} 12. Nc3 {[%emt 0:01:15]} Nh5 {[%emt 0:06:50]} 13. Bd2 {[%emt 0:21:06]} f5 {[%emt 0:06:17]} 14. Nxd7 {[%emt 0:04:19]} Qxd7 {[%emt 0:00:09]} 15. Qa4 {[%emt 0:00:31]} Rfd8 {[%emt 0:14:24]} 16. Rac1 {[%emt 0:06:55]} Nf6 {[%emt 0:17:08]} 17. Bg5 {[%emt 0:13:16]} Ra8 {[%emt 0:09:08]} 18. cxd5 {[%emt 0:02:52]} exd5 {[%emt 0:02:59]} 19. b4 {[%emt 0:09:30]} b5 {[%emt 0:05:29]} 20. Qb3 {[%emt 0:03:20]} a5 {[%emt 0:00:07]} 21. a3 {[%emt 0:07:02]} Kh8 {[%emt 0:00:09]} 22. Bf4 {[%emt 0:02:54]} Ne8 {[%emt 0:02:03]} 23. bxa5 {[%emt 0:04:28]} Rxa5 {[%emt 0:02:09]} 24. a4 {[%emt 0:00:08]} b4 {[%emt 0:02:12]} 25. Na2 {[%emt 0:01:19]} Rda8 {[%emt 0:03:53]} 26. Nxb4 {[%emt 0:04:25]} Rxa4 {[%emt 0:00:06]} 27. Nd3 {[%emt 0:04:55]} Rxd4 {[%emt 0:03:22]} 28. e3 {[%emt 0:02:23]} Ra3 {[%emt 0:02:55]} 29. Qb1 {[%emt 0:01:08]} Re4 {[%emt 0:02:39]} 30. Bxe4 {[%emt 0:03:40]} fxe4 {[%emt 0:00:01]} 31. Ne5 {[%emt 0:00:45]} Qc8 {[%emt 0:00:11]} 32. Rxd5 {[%emt 0:01:22]} cxd5 {[%emt 0:00:52]} 33. Rxc8 {[%emt 0:00:22]} Bxc8 {[%emt 0:00:01]} 34. Nc6 {[%emt 0:00:59]} Bg4 {[%emt 0:01:29]} 35. Nxe7 {[%emt 0:01:29]} Bf3 {[%emt 0:00:48]} 36. Nxd5 {[%emt 0:00:51]} Rd3 {[%emt 0:00:25]} 37. Nb4 {[%emt 0:00:27]} Rd1+ {[%emt 0:00:27]} 38. Qxd1 {[%emt 0:00:04]} Bxd1 {[%emt 0:00:02]} 39. Kf1 {[%emt 0:00:10]} Kg8 {[%emt 0:00:43]} 40. Ke1 {[%emt 0:00:15]} Bf3 {[%emt 0:00:34]} 41. Nc6 {[%emt 0:01:18]} Nf6 {[%emt 0:00:37]} 42. Be5 {[%emt 0:04:27]} Nd5 {[%emt 0:08:05]} 43. Bd4 {[%emt 0:02:30]} Bg2 {[%emt 0:02:35]} 44. h4 {[%emt 0:00:59]} g6 {[%emt 0:00:43]} 45. Ne5 {[%emt 0:01:07]} Nb4 {[%emt 0:00:41]} 46. Kd2 {[%emt 0:01:34]} Nd5 {[%emt 0:06:17]} 47. Ke2 {[%emt 0:04:39]} Nf6 {[%emt 0:03:11]} 48. Ke1 {[%emt 0:01:39]} Nd5 {[%emt 0:01:05]} 49. Kd2 {[%emt 0:00:05]} Kf8 {[%emt 0:00:41]} 50. Kc2 {[%emt 0:04:04]} Ke7 {[%emt 0:00:28]} 51. Kb3 {[%emt 0:00:50]} Ke6 {[%emt 0:01:01]} 52. Kc4 {[%emt 0:05:36]} Nf6 {[%emt 0:02:28]} 53. Bc3 {[%emt 0:02:00]} Ne8 {[%emt 0:04:41]} 54. Nc6 {[%emt 0:01:25]} Nd6+ {[%emt 0:00:36]} 55. Kc5 {[%emt 0:00:15]} Nf5 {[%emt 0:01:02]} 56. Nb4 {[%emt 0:03:55]} Nh6 {[%emt 0:01:33]} 57. Nd5 {[%emt 0:00:43]} Bh1 {[%emt 0:00:36]} 58. Nf6 {[%emt 0:01:57]} Kf5 {[%emt 0:00:07]} 59. Nxh7 {[%emt 0:00:14]} Ng4 {[%emt 0:00:21]} 60. Be1 {[%emt 0:00:12]} Ne5 {[%emt 0:00:12]} 61. Ng5 {[%emt 0:01:34]} Nd3+ {[%emt 0:00:46]} 62. Kd4 {[%emt 0:00:07]} Nxe1 {[%emt 0:00:06]} 63. g4+ {[%emt 0:00:41]} Kxg4 {[%emt 0:00:16]} 64. Nxe4 {[%emt 0:00:04]} Nf3+ {[%emt 0:00:42]} 65. Kd3 {[%emt 0:00:49]} Ne5+ {[%emt 0:01:28]} 66. Kd4 {[%emt 0:00:01]} Nc6+ {[%emt 0:00:15]} 67. Kd3 {[%emt 0:00:16]} Ne5+ {[%emt 0:00:33]} 68. Kd4 {[%emt 0:00:03]} Nf3+ {[%emt 0:01:36]} 69. Kd3 {[%emt 0:00:12]} Ne1+ {[%emt 0:01:21]} 70. Kd4 {[%emt 0:00:04]} Bxe4 {[%emt 0:00:19]} 71. Kxe4 {[%emt 0:00:06]} Nf3 {[%emt 0:00:17]} 72. Kd3 {[%emt 0:00:33]} Kf5 {[%emt 0:00:35]} 73. Ke2 {[%emt 0:00:09]} Ke4 {[%emt 0:00:04]} 74. Kf1 {[%emt 0:00:14]} Nxh4 {[%emt 0:00:06]} 75. Ke2 {[%emt 0:00:16]} g5 {[%emt 0:00:30]} 76. Kf1 {[%emt 0:02:05]} Kf3 {[%emt 0:00:02]} 77. Kg1 {[%emt 0:00:16]} Nf5 {[%emt 0:00:07]} 0-1

[Event "22nd ETCC Women 2019"]
[Site "Batumi"]
[Date "2019.10.30"]
[Round "6.32"]
[White "Calzetta Ruiz, Monica"]
[Black "Sandu, Mihaela"]
[Result "0-1"]
[ECO "B42"]
[WhiteElo "2251"]
[BlackElo "2260"]
[Annotator "NA"]
[PlyCount "98"]
[EventDate "2019.10.24"]
[EventType "team-tourn"]
[EventCountry "GEO"]
[SourceTitle "playchess.com"]
[Source "ChessBase"]
[SourceQuality "1"]
[WhiteTeam "Spain"]
[BlackTeam "Romania"]
[WhiteTeamCountry "ESP"]
[BlackTeamCountry "ROU"]
[TimeControl "40/5400+30:1800+30"]

1. e4 {[%emt 0:00:00]} c5 {[%emt 0:00:00]} 2. Nf3 {[%emt 0:00:00]} e6 {[%emt 0:00:00]} 3. d4 {[%emt 0:00:00]} cxd4 {[%emt 0:00:00]} 4. Nxd4 {[%emt 0:00:03]} a6 {[%emt 0:00:00]} 5. Bd3 {[%emt 0:00:21]} Qc7 {[%emt 0:00:21]} 6. O-O {[%emt 0:05:00]} Nf6 {[%emt 0:00:18]} 7. Qe2 {[%emt 0:02:41]} d6 {[%emt 0:00:26]} 8. c4 {[%emt 0:01:07]} Nc6 {[%emt 0:01:33]} 9. Nc2 {[%emt 0:09:42]} Ne5 {[%emt 0:06:15]} 10. Nc3 {[%emt 0:03:21]} Be7 {[%emt 0:05:52]} 11. Rd1 {[%emt 0:08:16]} Nfd7 {[%emt 0:09:34]} 12. Ne3 {[%emt 0:19:38]} Nxd3 {[%emt 0:01:05]} 13. Rxd3 {[%emt 0:03:12]} b5 {[%emt 0:07:18]} 14. cxb5 {[%emt 0:00:37]} Qb8 {[%emt 0:00:10]} 15. Rd1 {[%emt 0:03:24]} O-O {[%emt 0:02:27]} 16. b3 {[%emt 0:09:25]} Bf6 {[%emt 0:09:27]} 17. Bb2 {[%emt 0:00:19]} axb5 {[%emt 0:00:13]} 18. Ng4 {[%emt 0:00:11]} Bxc3 {[%emt 0:04:30]} 19. Bxc3 {[%emt 0:00:06]} f6 {[%emt 0:04:20]} 20. Bb4 {[%emt 0:01:33]} Ra6 {[%emt 0:00:25]} 21. Rac1 {[%emt 0:02:22]} Re8 {[%emt 0:05:40]} 22. Rc3 {[%emt 0:01:16]} Qa8 {[%emt 0:03:55]} 23. a3 {[%emt 0:00:35]} Bb7 {[%emt 0:01:08]} 24. Rg3 {[%emt 0:13:51]} Kh8 {[%emt 0:03:13]} 25. Qxb5 {[%emt 0:03:38]} Rd8 {[%emt 0:10:15]} 26. f3 {[%emt 0:00:31]} d5 {[%emt 0:00:51]} 27. Be7 {[%emt 0:03:21]} Bc6 {[%emt 0:07:12]} 28. Qe2 {[%emt 0:00:10]} Re8 {[%emt 0:00:17]} 29. Bb4 {[%emt 0:00:13]} Nf8 {[%emt 0:03:57]} 30. Qb2 {[%emt 0:01:40]} e5 {[%emt 0:00:09]} 31. exd5 {[%emt 0:00:59]} Bxd5 {[%emt 0:00:05]} 32. Ne3 {[%emt 0:00:27]} Be6 {[%emt 0:00:07]} 33. Nc4 {[%emt 0:01:39]} Ng6 {[%emt 0:05:44]} 34. Qf2 {[%emt 0:02:51]} Nf4 {[%emt 0:02:16]} 35. Nb6 {[%emt 0:01:24]} Qc6 {[%emt 0:03:14]} 36. Bc5 {[%emt 0:01:58]} Ne2+ {[%emt 0:01:29]} 37. Kh1 {[%emt 0:00:13]} Nxg3+ {[%emt 0:00:24]} 38. hxg3 {[%emt 0:00:01]} Qb5 {[%emt 0:02:32]} 39. a4 {[%emt 0:00:53]} Qxb3 {[%emt 0:00:15]} 40. Rd6 {[%emt 0:00:00]} Ra5 {[%emt 0:00:00]} 41. Rd2 {[%emt 0:10:10]} e4 {[%emt 0:12:49]} 42. g4 {[%emt 0:13:31]} exf3 {[%emt 0:00:55]} 43. gxf3 {[%emt 0:00:03]} Rxc5 {[%emt 0:01:18]} 44. Qxc5 {[%emt 0:00:46]} Qxf3+ {[%emt 0:00:15]} 45. Rg2 {[%emt 0:03:09]} Bxg4 {[%emt 0:02:04]} 46. Qf2 {[%emt 0:03:56]} Qh3+ {[%emt 0:00:16]} 47. Kg1 {[%emt 0:01:29]} Bf3 {[%emt 0:00:43]} 48. Rh2 {[%emt 0:01:45]} Qg4+ {[%emt 0:00:07]} 49. Kf1 {[%emt 0:00:04]} Bb7 {[%emt 0:00:52]} 0-1

[Event "22nd ETCC Women 2019"]
[Site "Batumi"]
[Date "2019.10.30"]
[Round "6.33"]
[White "Unuk, Laura"]
[Black "Tsolakidou, Stavroula"]
[Result "1-0"]
[ECO "A05"]
[WhiteElo "2278"]
[BlackElo "2431"]
[Annotator "NA"]
[PlyCount "91"]
[EventDate "2019.10.24"]
[EventType "team-tourn"]
[EventCountry "GEO"]
[SourceTitle "playchess.com"]
[Source "ChessBase"]
[SourceQuality "1"]
[WhiteTeam "Slovenia"]
[BlackTeam "Greece"]
[WhiteTeamCountry "SLO"]
[BlackTeamCountry "GRE"]
[TimeControl "40/5400+30:1800+30"]

1. Nf3 {[%emt 0:00:00]} Nf6 {[%emt 0:00:00]} 2. c4 {[%emt 0:00:00]} e6 {[%emt 0:00:00]} 3. g3 {[%emt 0:00:05]} d5 {[%emt 0:01:33]} 4. d4 {[%emt 0:00:36]} Bb4+ {[%emt 0:03:16]} 5. Bd2 {[%emt 0:00:13]} Bd6 {[%emt 0:00:15]} 6. Nc3 {[%emt 0:00:13]} c6 {[%emt 0:06:32]} 7. Qc2 {[%emt 0:02:32]} Nbd7 {[%emt 0:14:41]} 8. e4 {[%emt 0:01:33]} Nxe4 {[%emt 0:04:19]} 9. Nxe4 {[%emt 0:00:19]} dxe4 {[%emt 0:00:04]} 10. Qxe4 {[%emt 0:05:44]} c5 {[%emt 0:07:30]} 11. Bg2 {[%emt 0:18:11]} Qe7 {[%emt 0:03:16]} 12. O-O {[%emt 0:01:12]} Nf6 {[%emt 0:00:59]} 13. Qe1 {[%emt 0:05:04]} cxd4 {[%emt 0:09:42]} 14. Nxd4 {[%emt 0:02:24]} a6 {[%emt 0:11:11]} 15. b4 {[%emt 0:03:55]} Rb8 {[%emt 0:09:01]} 16. c5 {[%emt 0:06:32]} Bc7 {[%emt 0:00:05]} 17. Qe2 {[%emt 0:02:09]} e5 {[%emt 0:01:35]} 18. Rfe1 {[%emt 0:04:13]} O-O {[%emt 0:04:45]} 19. Bc3 {[%emt 0:04:34]} Bg4 {[%emt 0:05:20]} 20. Qb2 {[%emt 0:01:44]} Rfe8 {[%emt 0:00:59]} 21. h3 {[%emt 0:06:10]} Bc8 {[%emt 0:07:51]} 22. Rad1 {[%emt 0:01:06]} Rd8 {[%emt 0:02:19]} 23. Nf3 {[%emt 0:09:18]} Rxd1 {[%emt 0:00:22]} 24. Rxd1 {[%emt 0:01:13]} e4 {[%emt 0:00:29]} 25. Re1 {[%emt 0:03:22]} Ne8 {[%emt 0:03:45]} 26. Nd2 {[%emt 0:07:17]} f5 {[%emt 0:00:26]} 27. g4 {[%emt 0:00:05]} g6 {[%emt 0:01:32]} 28. gxf5 {[%emt 0:02:49]} gxf5 {[%emt 0:00:04]} 29. Nxe4 {[%emt 0:02:01]} fxe4 {[%emt 0:00:05]} 30. Rxe4 {[%emt 0:00:03]} Qf7 {[%emt 0:01:03]} 31. Qe2 {[%emt 0:06:52]} Bf5 {[%emt 0:01:00]} 32. Re7 {[%emt 0:00:50]} Qg6 {[%emt 0:00:44]} 33. Kh1 {[%emt 0:02:49]} Kf8 {[%emt 0:00:20]} 34. Bd5 {[%emt 0:00:34]} Rd8 {[%emt 0:01:04]} 35. Rf7+ {[%emt 0:01:13]} Qxf7 {[%emt 0:00:04]} 36. Bxf7 {[%emt 0:00:05]} Kxf7 {[%emt 0:00:07]} 37. Qf3 {[%emt 0:00:42]} Kg6 {[%emt 0:01:14]} 38. Qg2+ {[%emt 0:00:31]} Kf7 {[%emt 0:00:16]} 39. Qf3 {[%emt 0:00:08]} Ke6 {[%emt 0:00:31]} 40. Qxb7 {[%emt 0:00:00]} Rd1+ {[%emt 0:00:00]} 41. Kg2 {[%emt 0:01:21]} Bd3 {[%emt 0:14:19]} 42. f4 {[%emt 0:04:48]} Bd8 {[%emt 0:09:27]} 43. Qf3 {[%emt 0:03:04]} Bf1+ {[%emt 0:04:43]} 44. Kh2 {[%emt 0:00:39]} Rd7 {[%emt 0:01:56]} 45. Qxf1 {[%emt 0:00:39]} Nc7 {[%emt 0:00:57]} 46. Qe2+ {[%emt 0:04:39]} 1-0

[Event "22nd ETCC Women 2019"]
[Site "Batumi"]
[Date "2019.10.30"]
[Round "6.34"]
[White "Avramidou, Anastasia"]
[Black "Janzelj, Lara"]
[Result "1-0"]
[ECO "D10"]
[WhiteElo "2247"]
[BlackElo "2159"]
[Annotator "NA"]
[PlyCount "53"]
[EventDate "2019.10.24"]
[EventType "team-tourn"]
[EventCountry "GEO"]
[SourceTitle "playchess.com"]
[Source "ChessBase"]
[SourceQuality "1"]
[WhiteTeam "Greece"]
[BlackTeam "Slovenia"]
[WhiteTeamCountry "GRE"]
[BlackTeamCountry "SLO"]
[TimeControl "40/5400+30:1800+30"]

1. d4 {[%emt 0:00:00]} d5 {[%emt 0:00:00]} 2. c4 {[%emt 0:00:00]} c6 {[%emt 0:00:00]} 3. cxd5 {[%emt 0:00:00]} cxd5 {[%emt 0:00:00]} 4. Bf4 {[%emt 0:00:04]} Nf6 {[%emt 0:00:00]} 5. Nc3 {[%emt 0:00:17]} Nc6 {[%emt 0:00:00]} 6. e3 {[%emt 0:00:07]} a6 {[%emt 0:00:04]} 7. Bd3 {[%emt 0:00:09]} Bg4 {[%emt 0:00:23]} 8. Nge2 {[%emt 0:00:05]} e6 {[%emt 0:00:05]} 9. O-O {[%emt 0:00:14]} Be7 {[%emt 0:01:56]} 10. Rc1 {[%emt 0:05:17]} Nd7 {[%emt 0:04:08]} 11. a3 {[%emt 0:15:07]} Rc8 {[%emt 0:02:44]} 12. Qc2 {[%emt 0:02:45]} Bh5 {[%emt 0:07:24]} 13. e4 {[%emt 0:22:59]} dxe4 {[%emt 0:01:00]} 14. Bxe4 {[%emt 0:00:11]} Nf6 {[%emt 0:10:58]} 15. Rfd1 {[%emt 0:05:59]} Nxe4 {[%emt 0:02:09]} 16. Qxe4 {[%emt 0:05:01]} Bg6 {[%emt 0:00:10]} 17. Qe3 {[%emt 0:14:17]} Na5 {[%emt 0:06:13]} 18. d5 {[%emt 0:00:06]} Nc4 {[%emt 0:02:06]} 19. Qh3 {[%emt 0:10:03]} e5 {[%emt 0:03:00]} 20. d6 {[%emt 0:00:11]} Nxd6 {[%emt 0:00:27]} 21. Bxe5 {[%emt 0:00:07]} O-O {[%emt 0:00:23]} 22. Rd2 {[%emt 0:07:54]} Rc6 {[%emt 0:32:42]} 23. Rcd1 {[%emt 0:00:10]} f6 {[%emt 0:02:18]} 24. Bxd6 {[%emt 0:02:28]} Bxd6 {[%emt 0:00:38]} 25. Qe6+ {[%emt 0:00:14]} Bf7 {[%emt 0:00:04]} 26. Rxd6 {[%emt 0:00:05]} Qb8 {[%emt 0:02:46]} 27. Qe7 {[%emt 0:00:43]} 1-0

[Event "22nd ETCC Women 2019"]
[Site "Batumi"]
[Date "2019.10.30"]
[Round "6.35"]
[White "Rozman, Monika"]
[Black "Makropoulou, Marina"]
[Result "1-0"]
[ECO "B46"]
[WhiteElo "2122"]
[BlackElo "2201"]
[Annotator "NA"]
[PlyCount "43"]
[EventDate "2019.10.24"]
[EventType "team-tourn"]
[EventCountry "GEO"]
[SourceTitle "playchess.com"]
[Source "ChessBase"]
[SourceQuality "1"]
[WhiteTeam "Slovenia"]
[BlackTeam "Greece"]
[WhiteTeamCountry "SLO"]
[BlackTeamCountry "GRE"]
[TimeControl "40/5400+30:1800+30"]

1. e4 {[%emt 0:00:00]} c5 {[%emt 0:00:00]} 2. Nf3 {[%emt 0:00:00]} e6 {[%emt 0:00:00]} 3. d4 {[%emt 0:00:00]} cxd4 {[%emt 0:00:02]} 4. Nxd4 {[%emt 0:00:00]} Nc6 {[%emt 0:00:08]} 5. Nc3 {[%emt 0:00:00]} a6 {[%emt 0:00:21]} 6. Be3 {[%emt 0:00:00]} Nf6 {[%emt 0:00:41]} 7. Be2 {[%emt 0:00:03]} d5 {[%emt 0:03:41]} 8. exd5 {[%emt 0:01:23]} Nxd5 {[%emt 0:01:19]} 9. Nxd5 {[%emt 0:00:41]} exd5 {[%emt 0:02:28]} 10. O-O {[%emt 0:02:47]} Be7 {[%emt 0:01:16]} 11. c4 {[%emt 0:02:09]} Ne5 {[%emt 0:12:02]} 12. cxd5 {[%emt 0:05:56]} Qxd5 {[%emt 0:00:11]} 13. Rc1 {[%emt 0:01:34]} Bd7 {[%emt 0:08:03]} 14. Nb5 {[%emt 0:07:58]} Qxb5 {[%emt 0:13:39]} 15. Bxb5 {[%emt 0:00:33]} Bxb5 {[%emt 0:02:13]} 16. Re1 {[%emt 0:01:38]} O-O {[%emt 0:04:04]} 17. Bd4 {[%emt 0:05:03]} Ng6 {[%emt 0:02:31]} 18. Qg4 {[%emt 0:00:18]} f5 {[%emt 0:02:31]} 19. Rxe7 {[%emt 0:01:35]} Rf7 {[%emt 0:01:20]} 20. Rxf7 {[%emt 0:00:13]} fxg4 {[%emt 0:00:04]} 21. Rxg7+ {[%emt 0:00:37]} Kf8 {[%emt 0:00:31]} 22. Rcc7 {[%emt 0:00:22]} 1-0

[Event "22nd ETCC Women 2019"]
[Site "Batumi"]
[Date "2019.10.30"]
[Round "6.36"]
[White "Makka, Ioulia"]
[Black "Vidic, Teja"]
[Result "1-0"]
[ECO "B67"]
[WhiteElo "2048"]
[BlackElo "2174"]
[Annotator "NA"]
[PlyCount "91"]
[EventDate "2019.10.24"]
[EventType "team-tourn"]
[EventCountry "GEO"]
[SourceTitle "playchess.com"]
[Source "ChessBase"]
[SourceQuality "1"]
[WhiteTeam "Greece"]
[BlackTeam "Slovenia"]
[WhiteTeamCountry "GRE"]
[BlackTeamCountry "SLO"]
[TimeControl "40/5400+30:1800+30"]

1. e4 {[%emt 0:00:00]} c5 {[%emt 0:00:00]} 2. Nf3 {[%emt 0:00:00]} d6 {[%emt 0:00:00]} 3. d4 {[%emt 0:00:01]} cxd4 {[%emt 0:00:00]} 4. Nxd4 {[%emt 0:00:07]} Nf6 {[%emt 0:00:00]} 5. Nc3 {[%emt 0:00:11]} Nc6 {[%emt 0:00:00]} 6. Bg5 {[%emt 0:00:21]} e6 {[%emt 0:00:17]} 7. Qd2 {[%emt 0:02:50]} a6 {[%emt 0:00:25]} 8. O-O-O {[%emt 0:05:29]} Bd7 {[%emt 0:00:03]} 9. f4 {[%emt 0:01:14]} b5 {[%emt 0:00:05]} 10. Bxf6 {[%emt 0:28:06]} gxf6 {[%emt 0:00:07]} 11. Kb1 {[%emt 0:02:09]} Qb6 {[%emt 0:03:10]} 12. Nxc6 {[%emt 0:03:11]} Bxc6 {[%emt 0:00:06]} 13. f5 {[%emt 0:02:04]} b4 {[%emt 0:03:25]} 14. Ne2 {[%emt 0:01:34]} e5 {[%emt 0:00:13]} 15. Ng3 {[%emt 0:00:32]} h5 {[%emt 0:07:10]} 16. Bc4 {[%emt 0:01:00]} h4 {[%emt 0:03:41]} 17. Nf1 {[%emt 0:00:29]} Bxe4 {[%emt 0:01:58]} 18. Qe2 {[%emt 0:01:32]} Bb7 {[%emt 0:11:33]} 19. Ne3 {[%emt 0:05:02]} Be7 {[%emt 0:04:12]} 20. Rhe1 {[%emt 0:04:54]} Qc5 {[%emt 0:06:44]} 21. Qg4 {[%emt 0:02:54]} Rc8 {[%emt 0:09:04]} 22. Qg7 {[%emt 0:03:29]} Rf8 {[%emt 0:00:11]} 23. Bb3 {[%emt 0:04:31]} Qb6 {[%emt 0:21:05]} 24. Rd2 {[%emt 0:04:47]} Rc5 {[%emt 0:02:40]} 25. Ng4 {[%emt 0:08:07]} Qd8 {[%emt 0:06:12]} 26. Red1 {[%emt 0:06:59]} Bc6 {[%emt 0:06:59]} 27. Ne3 {[%emt 0:02:31]} Qc8 {[%emt 0:04:34]} 28. Qh7 {[%emt 0:01:03]} a5 {[%emt 0:04:19]} 29. Qxh4 {[%emt 0:01:02]} a4 {[%emt 0:03:11]} 30. Bd5 {[%emt 0:00:36]} Bxd5 {[%emt 0:00:54]} 31. Rxd5 {[%emt 0:00:25]} b3 {[%emt 0:01:35]} 32. Qxa4+ {[%emt 0:01:07]} Qc6 {[%emt 0:00:18]} 33. Qxc6+ {[%emt 0:01:25]} Rxc6 {[%emt 0:00:03]} 34. axb3 {[%emt 0:02:16]} Kd7 {[%emt 0:00:03]} 35. Ra5 {[%emt 0:00:41]} Bd8 {[%emt 0:01:34]} 36. Ra7+ {[%emt 0:00:28]} Kc8 {[%emt 0:00:21]} 37. Nc4 {[%emt 0:02:11]} Kb8 {[%emt 0:01:34]} 38. Ra4 {[%emt 0:01:50]} Bc7 {[%emt 0:00:21]} 39. Rd5 {[%emt 0:00:31]} Rd8 {[%emt 0:00:30]} 40. Rb5+ {[%emt 0:00:00]} Kc8 {[%emt 0:00:00]} 41. Ra8+ {[%emt 0:01:49]} Kd7 {[%emt 0:01:48]} 42. Rxd8+ {[%emt 0:03:51]} Bxd8 {[%emt 0:01:19]} 43. Ne3 {[%emt 0:08:25]} Rc8 {[%emt 0:07:28]} 44. c4 {[%emt 0:01:46]} Kc6 {[%emt 0:02:34]} 45. Nd5 {[%emt 0:00:34]} Bc7 {[%emt 0:01:32]} 46. Ne7+ {[%emt 0:00:21] Kd5} 1-0

[Event "22nd ETCC Women 2019"]
[Site "Batumi"]
[Date "2019.10.31"]
[Round "7.1"]
[White "Goryachkina, Aleksandra"]
[Black "Socko, Monika"]
[Result "1-0"]
[ECO "D25"]
[WhiteElo "2575"]
[BlackElo "2417"]
[Annotator "ChessBase"]
[PlyCount "63"]
[EventDate "2019.10.24"]
[EventType "team-tourn"]
[EventCountry "GEO"]
[SourceTitle "playchess.com"]
[Source "ChessBase"]
[SourceQuality "1"]
[WhiteTeam "Russia"]
[BlackTeam "Poland"]
[WhiteTeamCountry "RUS"]
[BlackTeamCountry "POL"]
[TimeControl "40/5400+30:1800+30"]

1. Nf3 {[%emt 0:00:00]} d5 {[%emt 0:00:00]} 2. d4 {[%emt 0:00:29]} Nf6 {[%emt 0:00:53]} 3. c4 {[%emt 0:00:14]} dxc4 {[%emt 0:00:04]} 4. e3 {[%emt 0:00:27]} a6 {[%emt 0:00:08]} 5. Bxc4 {[%emt 0:01:00]} b5 {[%emt 0:00:04]} 6. Bd3 {[%emt 0:03:20]} Bb7 {[%emt 0:00:14]} 7. O-O {[%emt 0:01:55]} Nbd7 {[%emt 0:00:41]} 8. a4 {[%emt 0:05:22]} b4 {[%emt 0:00:04]} 9. Qe2 {[%emt 0:02:18]} e6 {[%emt 0:01:52]} 10. Nbd2 {[%emt 0:00:33]} c5 {[%emt 0:00:30]} 11. Nc4 {[%emt 0:06:12]} Qc7 {[%emt 0:12:46]} 12. Rd1 {[%emt 0:07:52]} Be7 {[%emt 0:08:16]} 13. e4 {[%emt 0:02:23]} cxd4 {[%emt 0:02:16]} 14. e5 {[%emt 0:01:07]} Nd5 {[%emt 0:00:59]} 15. Nxd4 {[%emt 0:00:29]} O-O {[%emt 0:21:41]} 16. Bd2 {[%emt 0:01:41]} Nc5 {[%emt 0:02:41]} 17. Bc2 {[%emt 0:00:33]} Rad8 {[%emt 0:02:51]} 18. Rac1 {[%emt 0:06:23]} Rd7 {[%emt 0:03:33]} 19. Qg4 {[%emt 0:12:00]} f5 {[%emt 0:14:16]} 20. Qg3 {[%emt 0:04:41]} Qd8 {[%emt 0:03:33]} 21. Nf3 {[%emt 0:11:05]} Ne4 {[%emt 0:02:07]} 22. Bxe4 {[%emt 0:14:13]} fxe4 {[%emt 0:00:05]} 23. Bh6 {[%emt 0:01:58]} Bc5 {[%emt 0:08:57]} 24. Nd4 {[%emt 0:03:21]} Bxd4 {[%emt 0:01:03]} 25. Rxd4 {[%emt 0:00:33]} Nf4 {[%emt 0:01:21]} 26. Re1 {[%emt 0:03:13]} Nd3 {[%emt 0:06:16]} 27. Nb6 {[%emt 0:01:27]} Bd5 {[%emt 0:01:36]} 28. Nxd7 {[%emt 0:01:06]} Qxd7 {[%emt 0:00:01]} 29. Rexe4 {[%emt 0:01:33]} Nxf2 {[%emt 0:02:33]} 30. Re2 {[%emt 0:01:41]} Qc7 {[%emt 0:03:05]} 31. Rxf2 {[%emt 0:01:57]} Rxf2 {[%emt 0:00:04]} 32. Qxf2 {[%emt 0:00:15]} 1-0

[Event "22nd ETCC Women 2019"]
[Site "Batumi"]
[Date "2019.10.31"]
[Round "7.1"]
[White "Unuk, Laura"]
[Black "Exler, Veronika"]
[Result "1-0"]
[ECO "E06"]
[WhiteElo "2278"]
[BlackElo "2222"]
[Annotator "NA"]
[PlyCount "49"]
[EventDate "2019.10.24"]
[EventType "team-tourn"]
[EventCountry "GEO"]
[SourceTitle "playchess.com"]
[Source "ChessBase"]
[SourceQuality "1"]
[WhiteTeam "Slovenia"]
[BlackTeam "Austria"]
[WhiteTeamCountry "SLO"]
[BlackTeamCountry "AUT"]
[TimeControl "40/5400+30:1800+30"]

1. d4 {[%emt 0:00:00]} d5 {[%emt 0:00:00]} 2. c4 {[%emt 0:00:00]} e6 {[%emt 0:00:00]} 3. Nf3 {[%emt 0:00:00]} Nf6 {[%emt 0:00:00]} 4. g3 {[%emt 0:00:24]} Be7 {[%emt 0:00:04]} 5. Bg2 {[%emt 0:00:17]} O-O {[%emt 0:00:11]} 6. O-O {[%emt 0:00:35]} dxc4 {[%emt 0:00:04]} 7. Qc2 {[%emt 0:00:14]} b6 {[%emt 0:00:09]} 8. Rd1 {[%emt 0:06:14]} Bb7 {[%emt 0:02:54]} 9. Nbd2 {[%emt 0:01:38]} Nbd7 {[%emt 0:02:52]} 10. Nxc4 {[%emt 0:09:58]} Be4 {[%emt 0:09:56]} 11. Qb3 {[%emt 0:06:33]} c5 {[%emt 0:07:49]} 12. Bf4 {[%emt 0:12:45]} cxd4 {[%emt 0:31:13]} 13. Nxd4 {[%emt 0:04:21]} Nc5 {[%emt 0:01:06]} 14. Qb5 {[%emt 0:05:36]} Bxg2 {[%emt 0:01:34]} 15. Kxg2 {[%emt 0:06:26]} Nd5 {[%emt 0:15:59]} 16. Nc6 {[%emt 0:04:26]} Nxf4+ {[%emt 0:09:36]} 17. gxf4 {[%emt 0:00:06]} Qc7 {[%emt 0:00:04]} 18. Rac1 {[%emt 0:13:21]} Rac8 {[%emt 0:14:23]} 19. N4e5 {[%emt 0:07:59]} Qb7 {[%emt 0:00:39]} 20. f3 {[%emt 0:01:25]} f6 {[%emt 0:00:22]} 21. Rd7 {[%emt 0:00:29]} Nxd7 {[%emt 0:00:49]} 22. Nxe7+ {[%emt 0:00:19]} Kh8 {[%emt 0:00:05]} 23. Rxc8 {[%emt 0:00:36]} fxe5 {[%emt 0:00:33]} 24. Rxf8+ {[%emt 0:01:29]} Nxf8 {[%emt 0:00:03]} 25. Qe8 {[%emt 0:00:04]} 1-0